Workbook

Sheet Cover
B3: Excel + VBA
B6: Kapitel | C6: 17
B7: Thema | C7: Windrad
B9: Inhalt | C9: Berechnung des Energiegewinns
B15: Autor | C15: Harald Nahrstedt
B16: Datum | C16: 2022-09-16
B17: Version | C17: 7.0
B20: Springer Vieweg Verlag

Sheet Zeiten
A1: cp | B1: 0.45
A2: dR | B2: 100 | C2: m | D2: AR | E2: =dr^2*PI()/4 -> 7853.981634 | F2: m2
A3: δL | B3: 1.14 | C3: kg/m3
A4: vW | B4: 12 | C4: m/s
A6: t [h] | B6: Ewin [Mio kWh]
A7: 0 | B7: =cp*dl*AR*vw^3*A7/2000000000 -> 0
A8: 500 | B8: =cp*dl*AR*vw^3*A8/2000000000 -> 1.740567994
A9: 1000 | B9: =cp*dl*AR*vw^3*A9/2000000000 -> 3.481135988
A10: 1500 | B10: =cp*dl*AR*vw^3*A10/2000000000 -> 5.221703981
A11: 2000 | B11: =cp*dl*AR*vw^3*A11/2000000000 -> 6.962271975
A12: 2500 | B12: =cp*dl*AR*vw^3*A12/2000000000 -> 8.702839969
A13: 3000 | B13: =cp*dl*AR*vw^3*A13/2000000000 -> 10.44340796
A14: 3500 | B14: =cp*dl*AR*vw^3*A14/2000000000 -> 12.18397596
A15: 4000 | B15: =cp*dl*AR*vw^3*A15/2000000000 -> 13.92454395
A16: 4500 | B16: =cp*dl*AR*vw^3*A16/2000000000 -> 15.66511194
A17: 5000 | B17: =cp*dl*AR*vw^3*A17/2000000000 -> 17.40567994
A18: 5500 | B18: =cp*dl*AR*vw^3*A18/2000000000 -> 19.14624793
A19: 6000 | B19: =cp*dl*AR*vw^3*A19/2000000000 -> 20.88681593
A20: 6500 | B20: =cp*dl*AR*vw^3*A20/2000000000 -> 22.62738392
A21: 7000 | B21: =cp*dl*AR*vw^3*A21/2000000000 -> 24.36795191
A22: 7500 | B22: =cp*dl*AR*vw^3*A22/2000000000 -> 26.10851991
A23: 8000 | B23: =cp*dl*AR*vw^3*A23/2000000000 -> 27.8490879
A24: 8500 | B24: =cp*dl*AR*vw^3*A24/2000000000 -> 29.58965589
A25: 9000 | B25: =cp*dl*AR*vw^3*A25/2000000000 -> 31.33022389
